bitfinex/quotes_ETHUSD_20240915
["timestamp","ask_amount","ask_price","bid_price","bid_amount"]
[1726411812025,4.18290394,2412.8,2412.5,0.87085312]
[1726411812232,8.32757394,2412.8,2412.5,0.87085312]
[1726411812667,4.18290394,2412.8,2412.5,0.87085312]
[1726411814431,8.32757394,2412.8,2412.5,0.87085312]
[1726411814916,6.51097,2412.7,2412.5,0.87085312]
[1726411815313,0.03793367,2412.6,2412.5,0.87085312]
[1726411815519,4.18283367,2412.6,2412.5,0.87085312]
[1726411815824,6.51127,2412.5,2412.3,0.87085312]
[1726411816055,0.0376664,2412.4,2412.3,0.87085312]
[1726411818122,0.0376664,2412.4,2412.2,0.87085312]
[1726411818345,0.0376664,2412.4,2412.3,0.87085312]
[1726411818568,4.14509,2412.5,2412.3,0.87085312]
[1726411818863,0.0376664,2412.4,2412.3,0.87085312]
[1726411819037,0.0376664,2412.4,2412.2,0.87085312]
[1726411825152,7.29,2412.9,2412.2,0.87085312]
[1726411825153,4.14465,2412.8,2412.3,3.15135312]
[1726411825478,4.18132763,2412.7,2412.3,3.15135312]
[1726411827276,0.03653763,2412.7,2412.3,3.15135312]
[1726411827576,8.28931,2412.8,2412.4,0.44576328]
[1726411827877,0.03637272,2412.6,2412.4,0.44576328]
[1726411828032,8.28931,2412.8,2412.4,0.44576328]
[1726411828446,0.036449,2412.7,2412.4,0.44576328]
[1726411828866,8.28931,2412.8,2412.4,0.44576328]
[1726411829070,4.14465,2412.8,2412.4,0.44576328]
[1726411829268,0.03641843,2412.7,2412.6,2.3143]
[1726411829634,0.0364419,2412.7,2412.6,2.3143]
[1726411829973,4.14427,2413.0,2412.6,2.3143]
[1726411830264,0.0364419,2412.7,2412.6,2.3143]
[1726411830435,4.14427,2413.0,2412.6,2.3143]
[1726411831248,0.03659444,2412.9,2412.6,2.3143]
[1726411831452,0.03659444,2412.9,2412.6,3.07353706]
[1726411831666,0.03659444,2412.9,2412.6,7.21833706]
[1726411831862,4.1833083,2413.2,2412.6,7.21833706]
[1726411832455,8.3273283,2413.2,2412.6,7.21838706]
[1726411832645,0.08906686,2413.1,2412.6,7.21838706]
[1726411832980,4.23315686,2413.1,2412.7,1.31487222]
[1726411833280,6.48512,2413.0,2412.6,2.3143]
[1726411833596,0.08891867,2412.9,2412.6,2.3143]
[1726411834150,0.08891867,2412.9,2412.6,3.18380647]
[1726411834356,0.08891867,2412.9,2412.6,4.54855674]
[1726411834567,0.08891867,2412.9,2412.6,3.18380647]
[1726411834887,4.23330867,2412.9,2412.5,0.86950647]
[1726411836851,0.08891867,2412.9,2412.5,0.86950647]
[1726411837051,0.08891867,2412.9,2412.6,0.86950647]
[1726411840159,0.08891867,2412.9,2412.7,0.86950647]
[1726411840782,0.08891867,2412.9,2412.6,0.86950647]
[1726411841255,0.08891867,2412.9,2412.7,0.86950647]
[1726411841969,0.08891867,2412.9,2412.6,0.86950647]
[1726411842290,0.08891867,2412.9,2412.7,0.86950647]
[1726411842497,6.48546,2412.8,2412.7,0.86950647]
[1726411842659,7.14289787,2412.8,2412.6,0.86950647]
[1726411842856,7.23183051,2412.8,2412.6,0.86950647]
[1726411843297,2.42983264,2412.8,2412.6,0.86950647]
[1726411851308,0.08893264,2412.8,2412.6,0.86950647]
[1726411851914,0.08893264,2412.8,2412.7,0.86950647]
[1726411852232,4.14415,2413.1,2412.7,0.86950647]
[1726411852512,0.08669864,2412.8,2412.7,0.86950647]
[1726411852978,4.14422,2413.0,2412.7,0.86950647]
[1726411853172,0.08669864,2412.8,2412.7,0.86950647]
[1726411853417,8.28834,2413.1,2412.7,0.86950647]
[1726411853721,0.08669864,2412.8,2412.7,0.86950647]
[1726411854075,0.08669864,2412.8,2412.6,0.86950647]
[1726411854300,2.4917,2412.9,2412.6,0.86950647]
[1726411854301,6.63609,2412.9,2412.6,0.86950647]
[1726411854523,0.08662453,2412.7,2412.6,0.86950647]
[1726411854677,6.63609,2412.9,2412.6,0.86950647]
[1726411855008,2.4917,2412.9,2412.6,0.86950647]
[1726411855175,0.08681745,2412.8,2412.6,0.86950647]
[1726411855672,0.08674334,2412.7,2412.6,0.86950647]
[1726411855888,4.14423,2413.0,2412.6,0.86950647]
[1726411856073,0.08689154,2412.9,2412.6,0.86950647]
[1726411856298,0.08689154,2412.9,2412.7,3.24540647]
[1726411856500,0.08683048,2412.8,2412.7,3.24540647]
[1726411856672,8.28835,2413.1,2412.7,3.24540647]
[1726411857052,0.08697867,2413.0,2412.7,3.24540647]
[1726411857524,0.08697867,2413.0,2412.8,0.86950647]
[1726411857837,0.08697867,2413.0,2412.7,3.24540647]
[1726411859534,0.08697867,2413.0,2412.7,7.39012647]
[1726411859739,0.08697867,2413.0,2412.7,6.55497085]
[1726411860028,0.0393183,2413.2,2412.7,6.55497085]
[1726411860029,0.0393183,2413.2,2412.8,3.24540647]
[1726411860232,0.08695149,2412.9,2412.8,7.38995647]
[1726411860388,0.0393183,2413.2,2412.8,10.15459121]
[1726411860590,0.0393183,2413.2,2412.9,0.87030844]
[1726411860792,0.0393183,2413.2,2412.8,7.82470971]
[1726411860793,2.4917,2413.1,2412.8,0.87030844]
[1726411861097,0.84603034,2413.0,2412.7,0.87030844]
[1726411861332,2.4917,2413.1,2412.7,0.87030844]
[1726411861828,2.4917,2413.1,2412.8,0.87030844]
[1726411862724,8.3271983,2413.2,2412.8,3.24620844]
[1726411863226,4.14405,2413.1,2412.8,3.24620844]
[1726411863396,5.44364664,2413.2,2412.8,0.87030844]
[1726411863598,4.1832183,2413.2,2412.8,0.87030844]
[1726411866019,2.4917,2413.1,2412.8,0.87030844]
[1726411866218,2.4917,2413.1,2412.7,0.87030844]
[1726411867007,2.4917,2413.1,2412.8,0.87030844]
[1726411869356,4.1832183,2413.2,2412.8,0.87030844]
[1726411869551,4.1832183,2413.2,2412.9,3.26490844]
[1726411869747,0.0393183,2413.2,2412.9,3.26490844]
[1726411873641,0.08706633,2413.1,2412.9,3.26490844]
[1726411874882,0.08706633,2413.1,2412.9,0.87030844]
[1726411881291,4.23120633,2413.1,2412.8,0.87030844]
[1726411881746,4.14426,2413.0,2412.8,0.87030844]
[1726411882027,0.08695204,2412.9,2412.8,0.87030844]
[1726411883398,4.14456,2412.8,2412.7,0.87030844]
[1726411883628,8.28912,2412.8,2412.7,0.87030844]
[1726411883813,8.28912,2412.8,2412.6,0.87030844]
[1726411883814,4.14473,2412.7,2412.6,0.87030844]
[1726411884120,5.39564923,2412.7,2412.6,0.87030844]
[1726411884319,5.48239573,2412.7,2412.6,0.87030844]
[1726411884733,5.48239573,2412.7,2412.5,0.87030844]
[1726411884951,4.2314765,2412.7,2412.5,0.87030844]
[1726411886542,0.0867465,2412.7,2412.5,0.87030844]
[1726411886858,10.63693,2412.8,2412.5,0.87030844]
[1726411887061,0.0866385,2412.6,2412.5,0.87030844]
[1726411887207,6.49226,2412.8,2412.5,0.87030844]
[1726411887543,4.2315385,2412.6,2412.5,0.87030844]
[1726411887746,4.23165471,2412.6,2412.5,0.87030844]
[1726411887950,4.23165471,2412.6,2412.5,3.63531319]
[1726411887951,0.08675471,2412.6,2412.5,3.63531319]
[1726411888271,6.49226,2412.8,2412.5,3.63523663]
[1726411888447,0.0867359,2412.6,2412.5,1.30425971]
[1726411888599,7.555917,2412.8,2412.5,3.6352361]
[1726411888804,10.63692,2412.8,2412.6,0.87074305]
[1726411890006,6.49226,2412.8,2412.6,0.87074305]
[1726411890957,10.63692,2412.8,2412.6,0.87074305]
[1726411891333,6.49226,2412.8,2412.6,0.87074305]
[1726411892268,4.14432,2413.0,2412.7,3.28144305]
[1726411892622,11.4732983,2413.2,2412.8,0.87074305]
[1726411892822,11.4732983,2413.2,2412.9,0.87074305]
[1726411893017,11.4732983,2413.2,2412.8,0.87074305]
[1726411897060,11.4732983,2413.2,2412.9,0.87074305]
[1726411898040,11.4732983,2413.2,2412.8,0.87074305]
[1726411898252,4.1832983,2413.2,2412.8,0.87074305]
[1726411898834,4.1832983,2413.2,2412.9,0.87074305]
[1726411899029,4.1832983,2413.2,2412.8,0.87074305]
[1726411900351,4.14405,2413.1,2412.8,0.87074305]
[1726411900832,4.1832983,2413.2,2412.8,0.87074305]
[1726411903670,0.08705478,2413.1,2412.8,0.87074305]
[1726411908657,4.23111478,2413.1,2412.8,0.87074305]
[1726411908834,5.9132066,2413.1,2412.8,0.87074305]
[1726411909039,1.7691466,2413.1,2412.8,0.87074305]
[1726411910068,0.08705478,2413.1,2412.8,0.87074305]
[1726411912181,4.23109478,2413.1,2412.8,0.87074305]
[1726411912678,0.08705478,2413.1,2412.8,0.87074305]
[1726411918693,0.08705478,2413.1,2412.6,5.88382294]
[1726411918694,4.14456,2412.8,2412.6,0.87074305]
[1726411918853,4.14439,2412.9,2412.6,0.87074305]
[1726411918854,0.828895,2412.7,2412.6,0.87074305]
[1726411919192,0.08678402,2412.7,2412.6,0.87074305]
[1726411919475,6.45978,2413.0,2412.6,3.63548032]
[1726411919675,6.45978,2413.0,2412.7,0.87083962]
[1726411919977,6.45978,2413.0,2412.6,1.30425971]
[1726411919978,4.14439,2412.9,2412.6,0.87083962]
[1726411923739,4.14439,2412.9,2412.7,0.87083962]
[1726411930584,2.3283183,2413.2,2412.7,3.70625085]
[1726411930792,0.0393183,2413.2,2412.9,0.87083962]
[1726411931490,0.0393183,2413.2,2412.9,2.13878648]
[1726411931784,0.0393183,2413.2,2412.9,1.26794686]
[1726411932412,0.0393183,2413.2,2412.9,0.87083962]
[1726411933722,0.08683182,2413.1,2412.9,0.87083962]
[1726411935183,0.08683182,2413.1,2413.0,6.58821]
[1726411935379,0.08683182,2413.1,2413.0,10.65902798]
[1726411935695,0.08683182,2413.1,2413.0,6.08235202]
[1726411935898,0.08683182,2413.1,2413.0,7.50128042]
[1726411937985,0.08683182,2413.1,2413.0,3.86295816]
[1726411938183,0.08683182,2413.1,2413.0,7.50124374]
[1726411938426,0.08683182,2413.1,2413.0,3.86295816]
[1726411938787,0.08683182,2413.1,2413.0,7.50110717]
[1726411939206,0.08683182,2413.1,2413.0,3.86295816]
[1726411940422,0.08683182,2413.1,2413.0,0.87084887]
[1726411942592,0.08683182,2413.1,2412.9,5.45089722]
[1726411942787,0.08683182,2413.1,2412.9,1.30651722]
[1726411942987,0.08683182,2413.1,2413.0,3.63758608]
[1726411945729,0.08683182,2413.1,2413.0,12.01118119]
[1726411945931,0.08683182,2413.1,2413.0,14.39804312]
[1726411948493,0.08683182,2413.1,2413.0,14.39682242]
[1726411949744,0.08683182,2413.1,2413.0,10.76045704]
[1726411949939,0.08683182,2413.1,2413.0,18.54084092]
[1726411950231,0.08683182,2413.1,2413.0,18.53951273]
[1726411950441,0.08683182,2413.1,2413.0,18.53940913]
[1726411950641,0.08683182,2413.1,2413.0,18.53940569]
[1726411950796,0.08683182,2413.1,2413.0,18.53939603]
[1726411951004,0.08683182,2413.1,2413.0,18.97620518]
[1726411951835,0.08683182,2413.1,2413.0,18.53923868]
[1726411952021,0.08683182,2413.1,2413.0,17.2343237]
[1726411952204,0.08683182,2413.1,2413.0,18.53920486]
[1726411952410,0.08683182,2413.1,2413.0,17.2343237]
[1726411953337,0.08683182,2413.1,2413.0,18.53897167]
[1726411953534,0.08683182,2413.1,2413.0,17.2343237]
[1726411954122,0.08683182,2413.1,2413.0,15.44893859]
[1726411954442,0.08683182,2413.1,2413.0,18.5389798]
[1726411959766,0.08683182,2413.1,2413.0,18.53849207]
[1726411960455,0.08683182,2413.1,2413.0,17.2343237]
[1726411960670,0.08683182,2413.1,2413.0,18.53841657]
[1726411962592,0.08683182,2413.1,2413.0,22.97620518]
[1726411962733,0.08683182,2413.1,2413.0,23.40769483]
[1726411962932,0.0393183,2413.2,2413.0,23.40769483]
[1726411962933,0.0393183,2413.2,2413.1,10.71888]
[1726411963140,0.0393183,2413.2,2413.1,15.38930614]
[1726411963372,0.0393183,2413.2,2413.1,17.12777315]
[1726411963599,0.0393183,2413.2,2413.1,21.12777315]
[1726411965068,0.0393183,2413.2,2413.1,17.12777315]
[1726411966847,0.0393183,2413.2,2413.1,15.38930614]
[1726411967686,0.0393183,2413.2,2413.1,17.12702026]
[1726411967985,0.0393183,2413.2,2413.1,21.12702026]
[1726411971326,0.0393183,2413.2,2413.1,15.38930614]
[1726411971615,0.0393183,2413.2,2413.1,17.12703219]
[1726411973706,0.0393183,2413.2,2413.1,12.95850614]
[1726411973910,0.0393183,2413.2,2413.1,7.77719943]
[1726411974213,2.4996183,2413.2,2413.1,4.8690285]
[1726411974575,2.5742789,2413.2,2413.1,9.0130685]
[1726411974776,0.1139789,2413.2,2413.1,5.0130685]
[1726411975220,0.1139789,2413.2,2413.1,4.14404]
[1726411975417,0.0393183,2413.2,2413.1,9.08506313]
[1726411976136,0.1113013,2413.2,2413.1,9.08506313]
[1726411976319,0.0393183,2413.2,2413.1,9.08506313]
[1726411976630,0.0393183,2413.2,2413.1,9.51928641]
[1726411978539,0.0393183,2413.2,2413.1,9.08579425]
[1726411980120,0.0393183,2413.2,2413.1,3.63026486]
[1726411980729,0.11127422,2413.2,2413.1,3.63026486]
[1726411980944,0.0393183,2413.2,2413.1,3.63026486]
[1726411981101,0.11126114,2413.2,2413.1,3.63026486]
[1726411981299,0.11126114,2413.2,2413.1,3.63182961]
[1726411984747,0.11126114,2413.2,2413.1,7.77586961]
[1726411985040,0.0393183,2413.2,2413.1,8.461983]
[1726411985812,0.11126114,2413.2,2413.1,8.461983]
[1726411986449,0.11126114,2413.2,2413.1,10.19970905]
[1726411986651,0.11126114,2413.2,2413.1,8.461983]
[1726411987000,0.11126114,2413.2,2413.1,10.19970905]
[1726411987603,0.11126114,2413.2,2413.1,8.461983]
[1726411987806,0.11126114,2413.2,2413.1,7.77696374]
[1726411988060,0.11126114,2413.2,2413.1,6.47163572]
[1726411988342,0.11126114,2413.2,2413.1,4.06532177]
[1726411990042,0.11126114,2413.2,2413.1,8.64732662]
[1726411990250,0.0393183,2413.2,2413.1,8.64732662]
[1726411990547,0.0393183,2413.2,2413.1,10.39905664]
[1726411993069,0.0393183,2413.2,2413.1,15.2787928]
[1726411993220,0.0393183,2413.2,2413.1,17.6214928]
[1726411993554,0.0393183,2413.2,2413.1,18.84280149]
[1726411993759,0.0393183,2413.2,2413.1,18.27645376]
[1726411993962,0.0393183,2413.2,2413.1,17.6214928]
[1726411994261,0.0393183,2413.2,2413.1,18.18784063]
[1726411994420,0.0393183,2413.2,2413.1,22.27644815]
[1726411995455,0.0393183,2413.2,2413.1,21.6214928]
[1726412002080,0.0393183,2413.2,2413.1,19.2787928]
[1726412005471,0.0393183,2413.2,2413.1,22.27646699]
[1726412005765,0.0393183,2413.2,2413.1,22.84281991]
[1726412005978,0.0393183,2413.2,2413.1,22.27646699]
[1726412006739,0.0393183,2413.2,2413.1,18.27646699]
[1726412007068,0.0393183,2413.2,2413.1,18.84282436]
[1726412007269,0.0393183,2413.2,2413.1,18.84282512]
[1726412007479,0.0393183,2413.2,2413.1,18.84282069]
[1726412008473,0.0393183,2413.2,2413.1,21.45452512]
[1726412008693,0.0393183,2413.2,2413.1,18.84282069]
[1726412009054,0.0393183,2413.2,2413.1,21.45452512]
[1726412009465,0.0393183,2413.2,2413.1,18.84282069]
[1726412009662,0.0393183,2413.2,2413.1,19.93376699]
[1726412010960,0.0393183,2413.2,2413.1,19.2787928]
[1726412011148,0.0393183,2413.2,2413.1,19.93376625]
[1726412011649,0.0393183,2413.2,2413.1,20.50012836]
[1726412011881,0.0393183,2413.2,2413.1,25.38980935]
[1726412012186,0.0393183,2413.2,2413.1,29.53384935]
[1726412012484,0.0393183,2413.2,2413.1,29.53360371]
[1726412014453,0.0393183,2413.2,2413.1,28.9672424]
[1726412014790,0.0393183,2413.2,2413.1,29.53354831]
[1726412016597,0.0393183,2413.2,2413.1,29.53343812]
[1726412017657,0.0393183,2413.2,2413.1,18.21174033]
[1726412018103,0.0393183,2413.2,2413.1,17.5567928]
[1726412018795,0.0393183,2413.2,2413.1,18.21174889]
[1726412021291,0.0393183,2413.2,2413.1,17.5567928]
[1726412021606,0.0393183,2413.2,2413.1,24.82307733]
[1726412021900,0.0393183,2413.2,2413.1,24.82315724]
[1726412022964,0.0393183,2413.2,2413.1,25.23250158]
[1726412023782,0.0393183,2413.2,2413.1,21.23250158]
[1726412024605,0.0393183,2413.2,2413.1,20.16819674]
[1726412024769,0.0393183,2413.2,2413.1,20.82314841]
[1726412025105,0.0393183,2413.2,2413.1,21.2324932]
[1726412026365,0.0393183,2413.2,2413.1,21.23249332]
[1726412026590,0.0393183,2413.2,2413.1,18.62108938]
[1726412026872,0.0393183,2413.2,2413.1,25.23245203]
[1726412027187,0.0393183,2413.2,2413.1,29.37649203]
[1726412027508,0.0393183,2413.2,2413.1,36.92908065]
[1726412027706,0.0393183,2413.2,2413.1,40.52786481]
[1726412028402,0.0393183,2413.2,2413.1,40.09665647]
[1726412028565,0.0393183,2413.2,2413.1,36.49787231]
[1726412029386,0.0393183,2413.2,2413.1,31.22125094]
[1726412029565,0.0393183,2413.2,2413.1,38.41043512]
[1726412029762,0.0393183,2413.2,2413.1,36.49780917]
[1726412031219,0.0393183,2413.2,2413.1,34.45916938]
[1726412031372,0.0393183,2413.2,2413.1,34.7102058]
[1726412031573,0.0393183,2413.2,2413.1,35.43334616]
[1726412031772,0.0393183,2413.2,2413.1,36.08820246]
[1726412031974,0.0393183,2413.2,2413.1,36.49748764]
[1726412035316,0.0393183,2413.2,2413.1,31.22096244]
[1726412035487,0.0393183,2413.2,2413.1,33.71389621]
[1726412035815,0.0393183,2413.2,2413.1,30.67096244]
[1726412036379,0.0393183,2413.2,2413.1,26.67096244]
[1726412036604,0.0393183,2413.2,2413.1,29.71394796]
[1726412036872,0.0393183,2413.2,2413.1,26.67096244]
[1726412037083,0.0393183,2413.2,2413.1,29.71394796]
[1726412037283,0.0393183,2413.2,2413.1,26.67096244]
[1726412037715,0.0393183,2413.2,2413.1,27.22096244]
[1726412037889,0.0393183,2413.2,2413.1,31.36500244]
[1726412038217,0.0393183,2413.2,2413.1,35.36500244]
[1726412038514,0.0393183,2413.2,2413.1,31.22096244]
[1726412039008,0.0393183,2413.2,2413.1,35.36500244]
[1726412040171,0.0393183,2413.2,2413.1,38.40735306]
[1726412040376,0.0393183,2413.2,2413.1,34.26325464]
[1726412040685,0.0393183,2413.2,2413.1,31.22096244]
[1726412040893,0.0393183,2413.2,2413.1,34.26328149]
[1726412041095,0.0393183,2413.2,2413.1,32.80729333]
[1726412041354,0.0393183,2413.2,2413.1,30.17836151]
[1726412041503,0.0393183,2413.2,2413.1,22.12831939]
[1726412041838,0.0393183,2413.2,2413.1,19.96735984]
[1726412042043,0.0393183,2413.2,2413.1,22.57537863]
[1726412042405,0.0393183,2413.2,2413.1,22.9846986]
[1726412042916,0.0393183,2413.2,2413.1,25.9846986]
[1726412044228,0.0393183,2413.2,2413.1,25.98473537]
[1726412044429,0.0393183,2413.2,2413.1,28.99762691]
[1726412046014,0.0393183,2413.2,2413.1,33.14166691]
[1726412047426,0.0393183,2413.2,2413.1,32.07743499]
[1726412047758,0.0393183,2413.2,2413.1,28.07743499]
[1726412047919,0.0393183,2413.2,2413.1,29.14168907]
[1726412048418,0.0393183,2413.2,2413.1,33.14168907]
[1726412049080,0.0393183,2413.2,2413.1,33.14197242]
[1726412049467,0.0393183,2413.2,2413.1,30.53362301]
[1726412051083,0.0393183,2413.2,2413.1,31.18854327]
[1726412051289,0.0393183,2413.2,2413.1,30.53362414]
[1726412051596,0.0393183,2413.2,2413.1,30.53362484]
[1726412052985,0.0393183,2413.2,2413.1,33.14228428]
[1726412053700,0.0393183,2413.2,2413.1,33.14240723]
[1726412053850,0.0393183,2413.2,2413.1,30.53362484]
[1726412054191,0.0393183,2413.2,2413.1,33.14236868]
[1726412054360,0.0393183,2413.2,2413.1,32.07814696]
[1726412054703,0.0393183,2413.2,2413.1,30.12429573]
[1726412054997,0.0393183,2413.2,2413.1,33.14248059]
[1726412056085,0.0393183,2413.2,2413.1,33.14248382]
[1726412056763,0.0393183,2413.2,2413.1,32.0782416]
[1726412057075,0.0393183,2413.2,2413.1,32.48757131]
[1726412057271,0.0393183,2413.2,2413.1,33.14249886]
[1726412057655,0.0393183,2413.2,2413.1,34.20675865]
[1726412057855,0.0393183,2413.2,2413.1,33.79742894]
[1726412058255,0.0393183,2413.2,2413.1,33.14250139]
[1726412058594,0.0393183,2413.2,2413.1,33.14285051]
[1726412061686,0.0393183,2413.2,2413.1,32.07859072]
[1726412062297,0.0393183,2413.2,2413.1,33.14313144]
[1726412062501,0.0393183,2413.2,2413.1,33.14322091]
[1726412062803,0.0393183,2413.2,2413.1,33.14323306]
[1726412062968,0.0393183,2413.2,2413.1,30.53363931]
[1726412063168,0.0393183,2413.2,2413.1,33.14323537]
[1726412064094,0.0393183,2413.2,2413.1,30.53363931]
[1726412065183,0.0393183,2413.2,2413.1,29.87871015]
[1726412065369,0.0393183,2413.2,2413.1,30.53362633]
[1726412066500,0.0393183,2413.2,2413.1,26.53362633]
[1726412067203,0.0393183,2413.2,2413.1,29.14370865]
[1726412067403,0.0393183,2413.2,2413.1,29.14382801]
[1726412068009,2.4372183,2413.2,2413.1,29.14387168]
[1726412068209,2.4372183,2413.2,2413.1,26.53362633]
[1726412068507,2.4372183,2413.2,2413.1,26.12431142]
[1726412068716,2.4372183,2413.2,2413.1,26.53364391]
[1726412069502,2.4372183,2413.2,2413.1,33.1440641]
[1726412070618,2.4372183,2413.2,2413.1,29.00010012]
[1726412070797,2.4372183,2413.2,2413.1,8.91270519]
[1726412071005,2.49890857,2413.2,2413.1,8.06821714]
[1726412071883,2.49890857,2413.2,2413.1,4.06821714]
[1726412073072,2.49890857,2413.2,2413.1,3.6326116]
[1726412073272,2.49890857,2413.2,2413.1,2.32759572]
[1726412073516,2.49890857,2413.2,2413.1,3.6326353]
[1726412075211,2.49890857,2413.2,2413.1,0.86974356]
[1726412075520,2.49890857,2413.2,2413.1,0.86975877]
[1726412075671,2.49890857,2413.2,2413.1,9.55261784]
[1726412075874,2.49890857,2413.2,2413.1,2.65494222]
[1726412077712,2.49890857,2413.2,2413.1,0.86955711]
[1726412081770,2.49890857,2413.2,2413.0,0.86955711]
[1726412082614,2.49890857,2413.2,2413.1,0.86955711]
[1726412083655,2.49890857,2413.2,2413.0,0.86955711]
[1726412085258,2.49890857,2413.2,2413.1,0.86955711]
[1726412085620,2.49890857,2413.2,2413.0,0.86955711]
[1726412100884,0.10100857,2413.2,2413.0,0.86955711]
[1726412102333,0.10100857,2413.2,2413.1,0.86955711]
[1726412102700,0.10100857,2413.2,2413.1,2.65494222]
[1726412102905,0.10100857,2413.2,2413.1,1.78538511]
[1726412103133,0.10100857,2413.2,2413.1,2.65494222]
[1726412104138,0.10100857,2413.2,2413.1,0.86955711]
[1726412106826,2.44780857,2413.2,2413.1,0.86955711]
[1726412107220,2.44780857,2413.2,2413.0,0.86955711]
[1726412107751,2.44780857,2413.2,2413.1,0.86955711]
[1726412108117,2.44780857,2413.2,2413.0,0.86955711]
[1726412108343,2.44780857,2413.2,2413.1,0.86955711]
[1726412111156,2.44780857,2413.2,2413.0,0.86955711]
[1726412111364,2.44780857,2413.2,2413.1,0.86955711]
[1726412111526,2.44780857,2413.2,2413.0,0.86955711]
[1726412111710,2.44780857,2413.2,2413.1,0.86955711]
[1726412112335,2.44780857,2413.2,2413.0,0.86955711]
[1726412112554,2.44780857,2413.2,2413.1,0.86955711]
[1726412113618,3.10694543,2413.2,2413.1,0.86955711]
[1726412113843,2.44780857,2413.2,2413.1,0.86955711]
[1726412114413,2.44780857,2413.2,2413.0,1.30503958]
[1726412114414,2.44780857,2413.2,2413.0,0.86955711]
[1726412114610,2.44780857,2413.2,2413.1,0.86955711]
[1726412116582,2.44780857,2413.2,2413.1,3.62539785]
[1726412120406,6.59167857,2413.2,2413.1,3.62539785]
[1726412120569,1.17454643,2413.2,2413.1,3.62539785]
[1726412120767,0.10100857,2413.2,2413.1,3.62539785]
[1726412122816,10.78494857,2413.2,2413.1,3.62539785]
[1726412123016,4.14421,2413.0,2412.9,0.87144386]
[1726412123218,7.43619461,2413.0,2412.9,0.87144386]
[1726412123506,11.58040461,2413.0,2412.9,0.87144386]
[1726412123691,10.68498,2412.9,2412.8,0.87123693]
[1726412123893,12.02159497,2412.9,2412.8,0.87123693]
[1726412124208,4.14456,2412.8,2412.7,0.87123693]
[1726412124413,4.20123898,2412.8,2412.7,0.87123693]
[1726412124569,4.20123898,2412.8,2412.6,0.87123693]
[1726412124770,8.32631511,2412.7,2412.6,0.87123693]
[1726412125000,6.5411,2412.6,2412.5,0.87123693]
[1726412125199,6.5411,2412.6,2412.3,1.30503958]
[1726412125200,4.14507,2412.5,2412.4,0.87123693]
[1726412125412,4.20135066,2412.5,2412.4,0.87123693]
[1726412125703,0.05628066,2412.5,2412.3,0.87123693]
[1726412125906,4.20146066,2412.5,2412.3,0.87123693]
[1726412126804,4.20146066,2412.5,2412.2,0.87123693]
[1726412126805,8.34667066,2412.5,2412.2,0.87123693]
[1726412127510,2.3962,2412.3,2412.2,0.87123693]
[1726412127879,2.45231933,2412.3,2412.2,0.87123693]
[1726412128683,2.45231933,2412.3,2412.1,0.87123693]
[1726412130172,0.05611933,2412.3,2412.1,0.87123693]
[1726412130392,2.315,2412.6,2412.2,1.08886458]
[1726412130717,0.05607078,2412.5,2412.3,2.65662204]
[1726412131013,13.74947,2412.9,2412.4,0.87123693]
[1726412131316,0.05598641,2412.8,2412.5,4.62654123]
[1726412131494,0.05598641,2412.8,2412.5,5.49777816]
[1726412132016,2.3543183,2413.2,2412.7,1.78538511]
[1726412132168,0.05653842,2413.1,2412.7,7.03314001]
[1726412132377,0.05653842,2413.1,2412.8,6.58123]
[1726412133080,0.05653842,2413.1,2412.9,1.78538511]
[1726412133707,0.05653842,2413.1,2412.9,2.65662204]
[1726412134211,0.05653842,2413.1,2412.9,1.78538511]
[1726412134402,0.05653842,2413.1,2412.9,2.94997076]
[1726412137379,0.05653842,2413.1,2412.9,7.96559769]
[1726412137903,0.05653842,2413.1,2412.9,7.09436076]
[1726412138088,0.05653842,2413.1,2412.9,2.94997076]
[1726412138614,0.05653842,2413.1,2412.9,3.82120769]
[1726412138930,0.05653842,2413.1,2413.0,5.31494873]
[1726412139912,0.05653842,2413.1,2413.0,1.17073873]
[1726412140681,0.05653842,2413.1,2413.0,5.31494873]
[1726412142410,0.05653842,2413.1,2413.0,6.18618566]
[1726412142577,0.05653842,2413.1,2413.0,5.31494873]
[1726412142779,0.05653842,2413.1,2413.0,6.18618566]
[1726412145238,0.05653842,2413.1,2413.0,12.84997428]
[1726412145405,0.05653842,2413.1,2413.0,11.89585873]
[1726412145612,0.05653842,2413.1,2413.0,15.50123715]
[1726412148352,0.05653842,2413.1,2413.0,18.34040757]
[1726412148697,0.0393183,2413.2,2413.1,14.70002]
[1726412149047,0.0393183,2413.2,2413.1,21.42483966]
[1726412149242,0.0393183,2413.2,2413.1,29.11887966]
[1726412149536,0.0393183,2413.2,2413.1,35.25709725]
[1726412149747,0.0393183,2413.9,2413.8,8.28568]
[1726412149955,0.0393183,2413.9,2413.8,15.93878437]
[1726412150101,0.09649397,2413.9,2413.8,12.33896511]
[1726412150443,0.0393183,2413.9,2413.8,11.6566249]
[1726412150642,0.0393183,2413.9,2413.8,14.30980984]
[1726412151741,0.0393183,2413.9,2413.8,13.44201001]
[1726412152140,0.0393183,2413.9,2413.8,14.30980984]
[1726412152623,0.0393183,2413.9,2413.8,13.44201001]
[1726412159976,0.0393183,2413.9,2413.8,17.44201001]
[1726412161980,0.0393183,2413.9,2413.8,21.58485001]
[1726412162342,0.0948221,2413.9,2413.8,21.58485001]
[1726412164168,0.0948221,2413.9,2413.8,17.58485001]
[1726412164552,0.0948221,2413.9,2413.8,21.58485001]
[1726412165454,0.0948221,2413.9,2413.8,17.58485001]
[1726412166487,0.0948221,2413.9,2413.8,25.27769001]
[1726412166838,0.0393183,2413.9,2413.8,26.14548984]
[1726412167063,0.0393183,2413.9,2413.8,30.14548984]
[1726412169752,0.0393183,2413.9,2413.8,29.27769001]
[1726412169951,0.0393183,2413.9,2413.8,30.14548984]
[1726412170177,0.0393183,2413.9,2413.8,34.28832984]
[1726412170497,0.0393183,2414.6,2414.5,24.32284511]
[1726412170645,0.0393183,2414.6,2414.5,24.18120511]
[1726412170846,0.0393183,2414.6,2414.5,22.39582]
[1726412171077,0.0393183,2414.6,2414.5,25.04431913]
[1726412171379,0.0393183,2414.6,2414.5,23.63120511]
[1726412171577,0.0393183,2414.6,2414.5,25.86095143]
[1726412171940,0.0393183,2414.6,2414.5,27.93360159]
[1726412172151,0.0393183,2414.6,2414.5,29.34671561]
[1726412172547,0.0393183,2414.6,2414.5,29.34580232]
[1726412173089,0.0286366,2415.3,2415.2,4.14044]
[1726412173443,0.07994913,2415.3,2415.2,4.14044]
[1726412173650,0.0286366,2415.3,2415.2,4.14044]
[1726412174051,0.0286366,2415.3,2415.2,8.36367972]
[1726412174256,0.0286366,2415.3,2415.2,8.28088]
[1726412174584,0.0286366,2415.3,2415.2,9.3839249]
[1726412175856,0.0286366,2415.3,2415.2,11.8048249]
[1726412176084,0.0286366,2415.3,2415.2,15.9452649]
[1726412176583,0.0286366,2415.3,2415.2,16.80746563]
[1726412176981,0.0286366,2415.3,2415.2,17.35746563]
[1726412177393,0.0286366,2415.3,2415.2,20.35746563]
[1726412177566,0.0286366,2415.3,2415.2,20.35688978]
[1726412178273,0.0286366,2415.3,2415.2,20.35688602]
[1726412178694,0.0286366,2415.3,2415.2,20.78993593]